[Event "44th Chess Olympiad Open 2022"]
[Site "Chennai"]
[Date "2022.08.03"]
[Round "6.38"]
[White "Reimanis, Ritvars"]
[Black "Okas, Walter"]
[Result "1-0"]
[WhiteElo "2377"]
[BlackElo "2191"]
[Annotator "TA"]
[PlyCount "115"]
[EventDate "2022.??.??"]
[TimeControl "60"]

{[%evp 23,115,34,94,66,125,41,42,47,33,33,34,30,65,75,118,111,118,119,123,115,
133,133,148,149,140,143,167,167,175,180,170,110,175,162,188,185,212,215,205,
120,114,105,1679,257,255,239,242,227,241,203,203,202,202,203,235,239,245,203,
168,168,250,235,214,122,122,122,279,129,288,297,582,570,529,522,493,492,492,
485,485,485,466,480,485,485,478,463,409,368,859,804,671,593,677,553]} 1. d4 {
[%emt 0:00:05]} Nf6 {[%emt 0:00:11]} 2. Nf3 {[%emt 0:00:03]} e6 {[%emt 0:00:15]
} 3. c4 {[%emt 0:00:08]} b6 {[%emt 0:00:13]} 4. g3 {[%emt 0:00:05]} Bb7 {
[%emt 0:00:15]} 5. Bg2 {[%emt 0:00:04]} Bb4+ {[%emt 0:00:08]} 6. Bd2 {[%emt 0:
00:00]} Be7 {[%emt 0:00:11]} 7. Nc3 {[%emt 0:06:18]} d5 {[%emt 0:00:54]} 8.
cxd5 {[%emt 0:01:54]} exd5 {[%emt 0:00:20]} 9. O-O {[%emt 0:06:26]} O-O {
[%emt 0:00:37]} 10. Rc1 {[%emt 0:00:54]} Nbd7 {[%emt 0:03:05]} 11. Bf4 {
[%emt 0:11:53]} a6 {[%emt 0:06:04]} 12. Ne5 {[%emt 0:02:34]} c5 {[%emt 0:05:23]
[#]} (12... Re8 $14) 13. e3 $146 {[%emt 0:09:07] E18: Queen's Indian: Old Main
Line (4 g3 Bb7 5 Bg2 Be7 6 0-0 0-0 7 Nc3).} ({Predecessor:} 13. dxc5 Nxc5 14.
Nf3 Nfe4 15. Nd4 Bf6 16. Be3 {½-½ (15) Starostits,I (2457)-Cruz Estrada,F 
(2311) Jerez de la Frontera 2021}) 13... Ne4 {[%emt 0:07:36]} (13... cxd4 $14
14. exd4 (14. Qxd4 Nc5 $14) 14... Re8) 14. Nxd7 {[%emt 0:19:53]} (14. Nxe4 $16
Nxe5 15. Nc3 (15. Bxe5 dxe4 16. dxc5 Bxc5 $16) (15. Nxc5 bxc5 16. Bxe5 c4 $16))
14... Nxc3 $1 $14 {[%emt 0:00:40]} 15. Rxc3 {[%emt 0:00:09] White is slightly
better.} Qxd7 {[%emt 0:00:10]} 16. dxc5 {[%emt 0:01:03]} bxc5 {[%emt 0:01:30]}
17. Rd3 {[%emt 0:00:11][%cal Rg2d5]} c4 {[%emt 0:06:53]} 18. Rd2 {[%emt 0:00:
00][%cal Rg2d5]} Bb4 {[%emt 0:04:46]} 19. Rd4 {[%emt 0:00:36]} Rac8 {[%emt 0:
00:00]} 20. Bxd5 {[%emt 0:01:18]} Bxd5 {[%emt 0:02:29]} 21. Rxd5 {[%emt 0:00:
00]} Qc6 {[%emt 0:00:46]} 22. Be5 {[%emt 0:07:41]} Qe6 {[%emt 0:07:45]} 23. Bc3
{[%emt 0:01:58]} Bxc3 {[%emt 0:02:38]} 24. bxc3 {[%emt 0:03:25]} Qb6 {[%emt 0:
00:00]} 25. Qd4 {[%emt 0:03:24]} Qb2 {[%emt 0:02:33]} 26. a4 {[%emt 0:01:33]} (
26. Rg5 g6 $16) 26... h6 {[%emt 0:03:16]} 27. Rd6 {[%emt 0:00:58]} (27. a5 $18)
27... Qa3 {[%emt 0:00:57]} (27... a5 $16) 28. Rxa6 $18 {[%emt 0:01:53]} Rfd8 {
[%emt 0:00:22]} 29. Qe5 {[%emt 0:00:52]} Rd3 {[%emt 0:03:43]} 30. Qf5 {[%emt 0:
00:00]} Rf8 {[%emt 0:04:00]} 31. Rb1 {[%emt 0:00:36]} (31. Qg4 $18) 31... Rxc3
{[%emt 0:01:44]} 32. Rb7 $40 {[%emt 0:00:35][%cal Ya6a8] [#] Threatening mate
with Ra8! White is out for blood.} Rc1+ $2 {[%emt 0:09:24]} (32... Rb3 $16 33.
Rxb3 cxb3) 33. Kg2 {[%emt 0:00:01][%cal Ya6a8]} Qd3 {[%emt 0:00:00]} 34. Qxd3 {
[%emt 0:00:37] Active counter play!} cxd3 {[%emt 0:00:04] Endgame KRR-KRR} 35.
Rd7 {[%emt 0:00:16]} Rc3 {[%emt 0:05:32]} 36. Raa7 {[%emt 0:00:39]} g5 {
[%emt 0:01:42]} 37. g4 {[%emt 0:01:23]} Kg7 {[%emt 0:00:00]} 38. h3 {[%emt 0:
00:19]} Ra3 {[%emt 0:01:07]} 39. e4 {[%emt 0:01:12]} Kf6 {[%emt 0:00:18]} 40.
Ra5 {[%emt 0:02:48]} Ke6 {[%emt 0:00:45]} 41. Rdd5 {[%emt 0:30:10] Black must
now prevent e5.} Rc8 {[%emt 0:06:08]} (41... Kf6 {might work better.} 42. e5+
Kg7) 42. Ra6+ {[%emt 0:00:00]} Ke7 {[%emt 0:00:24]} 43. Ra7+ {[%emt 0:00:00]} (
{Don't play} 43. Rxh6 $6 Rxa4 44. Rxd3 Rxe4) (43. Re5+ $18 Kd7 44. Rd5+ (44.
Rxh6 Rxa4 45. Rd5+ Ke7 $16) 44... Ke7 45. Re5+ (45. Rxh6 Rxa4 46. Rxd3 Rxe4 $16
) 45... Kd7 46. Rd5+ (46. Rxh6 Rxa4 47. Rf5 Rd8 $16) 46... Ke7) 43... Ke6 $16 {
[%emt 0:00:40]} 44. Rad7 {[%emt 0:00:00]} Rxa4 $2 {[%emt 0:02:06] [#]} (44...
Ra8 $16 {is a better defense.} 45. R7d6+ (45. Rxd3 Rxd3 46. Rxd3 Rxa4 $16)
45... Ke7) 45. R5d6+ $1 $18 {[%emt 0:00:00]} ({Weaker is} 45. Rxd3 Rc6 $16)
45... Ke5 {[%emt 0:00:25]} 46. Rxd3 {[%emt 0:00:00]} Rc6 $2 {[%emt 0:02:49]} (
46... h5 47. gxh5 Rh8) 47. Re7+ {[%emt 0:00:00]} Kf6 {[%emt 0:01:34]} 48. Rdd7
{[%emt 0:00:00]} Kg6 {[%emt 0:01:29]} 49. Rxf7 {[%emt 0:00:00] e5 would kill
now.} Rxe4 {[%emt 0:00:26]} 50. Rg7+ {[%emt 0:00:00]} Kf6 {[%emt 0:01:12]} 51.
Rdf7+ {[%emt 0:00:00]} Ke5 {[%emt 0:01:39]} 52. Re7+ {[%emt 0:00:00]} Kd5 {
[%emt 0:00:04]} 53. Rxe4 {[%emt 0:00:21]} Kxe4 {[%emt 0:00:04]} 54. Rf7 {
[%emt 0:01:10]} Re6 {[%emt 0:02:34]} 55. Rf5 {[%emt 0:00:00]} Rd6 $2 {[%emt 0:
01:28]} (55... Ra6 56. Kg3 Rd6 57. f3+ Ke3) 56. f3+ {[%emt 0:00:52] White is
clearly winning.} Ke3 {[%emt 0:00:15]} 57. Kg3 {[%emt 0:00:27]} Rd1 {[%emt 0:
01:15]} 58. Re5+ {[%emt 0:05:42] Weighted Error Value: White=0.10 (very
precise) /Black=0.29 (precise)} 1-0

[Event "44th Chess Olympiad Open 2022"]
[Site "Chennai"]
[Date "2022.08.03"]
[Round "6.38"]
[White "Wanyama, Harold"]
[Black "Kantans, Toms"]
[Result "0-1"]
[WhiteElo "2242"]
[BlackElo "2486"]
[Annotator "TA"]
[PlyCount "80"]
[EventDate "2022.??.??"]
[TimeControl "60"]

{[%evp 26,80,2,-14,-14,-32,-17,-35,-33,-70,-74,-68,-70,-88,-90,-103,-87,-67,
-50,-137,0,0,0,0,0,-56,-63,-113,0,-109,-114,-499,-503,-442,-366,-487,-335,-312,
-305,-303,-260,-728,-702,-689,-456,-491,-483,-185,-22,-859,-848,-29988,-29988,
-29988,-29989,-29990,-29991]} 1. d4 {[%emt 0:00:06]} Nf6 {[%emt 0:00:07]} 2. c4
{[%emt 0:00:10]} c5 {[%emt 0:00:21]} 3. d5 {[%emt 0:00:17]} e6 {[%emt 0:00:07]}
4. Nc3 {[%emt 0:00:13]} exd5 {[%emt 0:00:08]} 5. cxd5 {[%emt 0:00:08]} d6 {
[%emt 0:00:04]} 6. Nf3 {[%emt 0:00:16]} g6 {[%emt 0:00:07]} 7. g3 {[%emt 0:00:
00]} Bg7 {[%emt 0:00:07]} 8. Bg2 {[%emt 0:00:06]} O-O {[%emt 0:00:09][%cal
Yh8f8,Yf8e8,Ye8e5]} 9. O-O {[%emt 0:00:07]} Re8 {[%emt 0:00:30]} 10. Nd2 {
[%emt 0:00:10]} a6 {[%emt 0:01:05]} 11. a4 {[%emt 0:00:12]} Nbd7 {[%emt 0:00:
00]} 12. Nc4 {[%emt 0:01:05]} Ne5 {[%emt 0:00:24]} 13. Nxe5 {[%emt 0:00:48]}
Rxe5 {[%emt 0:00:06]} 14. e4 {[%emt 0:00:36] is the legacy move (14.Bf4).} Re8
{[%emt 0:02:42] 14...Rb8 is vanishing. A64: Modern Benoni: Fianchetto
Variation: 9...Nbd7 10 Nd2 a6 11 a4 Re8.} 15. h3 {[%emt 0:00:34]} Rb8 {[%emt 0:
00:00]} 16. Qd3 {[%emt 0:02:39] Prevents b5.} Nd7 {[%emt 0:02:36] Black is
slightly better.} 17. f4 {[%emt 0:00:48]} b5 $1 {[%emt 0:00:36]} 18. axb5 {
[%emt 0:01:31]} axb5 {[%emt 0:00:05]} 19. Kh2 {[%emt 0:00:09]} (19. Nxb5 $2 c4
20. Qxc4 Qb6+ 21. Kh2 Qxb5 22. Qxb5 Rxb5 $19) 19... c4 {[%emt 0:02:13]} 20. Qc2
{[%emt 0:01:32]} Nc5 {[%emt 0:06:27]} 21. Be3 {[%emt 0:04:18]} Qc7 {[%emt 0:00:
00] [#]} 22. g4 $146 {[%emt 0:05:18]} (22. f5 $1 $15) ({Predecessor:} 22. e5
dxe5 23. Nxb5 Rxb5 24. Qxc4 Rxb2 25. Qxc5 Qxc5 26. Bxc5 exf4 27. Rfe1 fxg3+ 28.
Kh1 Rxe1+ 29. Rxe1 {0-1 (36) Le,T (1947)-Hoang,C (2390) Ho Chi Minh City 2015})
22... f5 {[%emt 0:19:36]} (22... b4 $17 23. Ne2 b3) 23. gxf5 $11 {[%emt 0:00:
00]} gxf5 {[%emt 0:00:41]} 24. e5 {[%emt 0:00:18]} dxe5 {[%emt 0:01:45] aiming
for ...Bd7.} 25. d6 {[%emt 0:00:20]} (25. Nxb5 $11 Rxb5 26. Qxc4) 25... Qxd6
$15 {[%emt 0:00:14]} 26. Rfd1 $1 {[%emt 0:08:46]} Qe7 {[%emt 0:15:48]} (26...
Nd3 $17 27. Nxb5 Qb4) 27. Nxb5 {[%emt 0:01:36]} exf4 $17 {[%emt 0:07:12]} 28.
Bf2 {[%emt 0:15:30]} f3 $19 {[%emt 0:10:59]} 29. Bxf3 {[%emt 0:00:00]} Ne4 {
[%emt 0:00:05][%cal Yc5e4,Ye4f2,Yf2d3,Yd3f4]} 30. Nc3 {[%emt 0:08:49]} Rxb2 {
[%emt 0:07:48]} 31. Qxb2 {[%emt 0:02:44] And now Ra7 would win.} Bxc3 {[%emt 0:
01:22]} 32. Rg1+ {[%emt 0:00:48]} Kf8 {[%emt 0:00:04] The board is on fire.}
33. Qb6 {[%emt 0:23:52]} (33. Qa3 Be5+ 34. Kg2 Nxf2 35. Kxf2) 33... Nxf2 {
[%emt 0:01:10]} 34. Ra7 {[%emt 0:00:35]} Be5+ {[%emt 0:06:11]} 35. Kg2 {
[%emt 0:00:37]} Qg5+ {[%emt 0:01:55]} ({Inferior is} 35... Qh4 36. Qc5+ Kg8 37.
Qxf2 $15) 36. Kf1 {[%emt 0:02:05] [#]} Qc1+ {[%emt 0:02:26]} (36... Qf4 $1 $19
{( -> ...Nd3)} 37. Qxf2 Be6 38. Rxh7 c3 39. Qc5+ Bd6 40. Rh8+ Kf7 41. Rh7+ Kf6
42. Rh6+ (42. Qxc3+ $2 Be5 $19) 42... Qxh6 43. Qxd6 Qe3) 37. Kg2 $4 {[%emt 0:
00:11] [#]} (37. Kxf2 $11 Qd2+ 38. Kf1 Qc1+ 39. Kf2 Qc2+ 40. Kf1 Qd3+ 41. Kg2 (
41. Be2 $2 Qxe2+ 42. Kxe2 Bd4+ 43. Kd1 Bxb6 $19) 41... Qd2+ 42. Kf1 Qc1+ 43.
Kf2) 37... Qd2 $1 {[%emt 0:00:35]} 38. Re1 {[%emt 0:02:15]} (38. Qc5+ Bd6)
38... Nd3+ {[%emt 0:00:49] Black mates.} 39. Re2 {[%emt 0:06:12]} Nf4+ {
[%emt 0:00:06]} 40. Kf1 {[%emt 0:00:10]} Qd1+ {[%emt 0:00:00] Weighted Error
Value: White=1.00/Black=0.30} 0-1

[Event "44th Chess Olympiad Open 2022"]
[Site "Chennai"]
[Date "2022.08.03"]
[Round "6.38"]
[White "Ungurs, Edgars"]
[Black "Egesa emmanuel"]
[Result "1-0"]
[WhiteElo "2206"]
[BlackElo "2152"]
[Annotator "TA"]
[PlyCount "65"]
[EventDate "2022.??.??"]
[TimeControl "60"]

{[%evp 17,65,28,13,11,14,19,15,6,27,0,2,1,7,0,48,41,48,17,19,27,96,81,261,240,
250,163,164,166,154,155,153,160,222,226,294,295,277,231,233,216,218,220,367,
367,362,360,349,268,477,450]} 1. e4 {[%emt 0:00:05]} c6 {[%emt 0:00:37]} 2. d4
{[%emt 0:00:28]} d5 {[%emt 0:00:07]} 3. exd5 {[%emt 0:00:24]} cxd5 {[%emt 0:00:
00]} 4. Bd3 {[%emt 0:00:08]} Nc6 {[%emt 0:05:11]} 5. c3 {[%emt 0:00:10]} Nf6 {
[%emt 0:02:37]} 6. h3 {[%emt 0:00:36]} g6 {[%emt 0:03:21]} 7. Bf4 {[%emt 0:00:
00]} Bg7 {[%emt 0:03:23]} 8. Nd2 {[%emt 0:01:47] is the legacy move (8.Nf3).}
O-O {[%emt 0:01:07]} 9. Ngf3 {[%emt 0:00:30]} Nd7 {[%emt 0:10:40]} 10. O-O {
[%emt 0:06:20] B13: Caro-Kann: Exchange Variation and Panov-Botvinnik Attack.}
e5 {[%emt 0:04:23]} 11. dxe5 {[%emt 0:02:22]} Ndxe5 {[%emt 0:00:13]} 12. Nxe5 {
[%emt 0:05:29] The position is equal.} Nxe5 {[%emt 0:00:22]} 13. Bc2 {[%emt 0:
00:00]} Nc6 {[%emt 0:09:42] [#]} 14. Qf3 $146 {[%emt 0:12:38]} ({Predecessor:} 
14. Nf3 d4 15. cxd4 Nxd4 16. Nxd4 Qxd4 17. Qxd4 Bxd4 18. Rad1 Bf6 19. b3 a5 20.
Rfe1 Kg7 21. Be5 Ra6 {½-½ (21) Ortpaul,M (1947)-Lodes,H (2132) Nuremberg 2012
}) 14... d4 {[%emt 0:02:50]} 15. Ne4 {[%emt 0:13:04]} dxc3 {[%emt 0:01:53]} (
15... Bf5 $11) 16. bxc3 $14 {[%emt 0:00:23]} (16. Rad1 Nd4 17. Rxd4 Qxd4 $17)
16... Bf5 {[%emt 0:10:02]} 17. Rad1 {[%emt 0:06:47]} Qa5 {[%emt 0:01:26]} 18.
Bb3 {[%emt 0:02:45]} Ne5 {[%emt 0:16:03]} (18... Bxe4 $11 19. Qxe4 Rad8) 19.
Qe3 {[%emt 0:09:12] And now Nd6 would win. White is more active.} Rac8 $2 {
[%emt 0:03:48] This move loses the game for Black.} (19... Bxe4 $16 20. Qxe4
Qxc3) 20. Rd5 $18 {[%emt 0:04:00]} Qb6 {[%emt 0:08:16] [#] ...Qxe3 is the
strong threat.} 21. Qxb6 {[%emt 0:05:14]} axb6 {[%emt 0:00:18]} 22. Nd6 {
[%emt 0:00:13]} (22. Bxe5 $6 Bxe4 23. Bxg7 Kxg7 $11) 22... Rc5 {[%emt 0:04:07]}
23. Nxf5 {[%emt 0:04:17]} ({Much less strong is} 23. Nxb7 $6 Rxd5 24. Bxd5 Be6
25. Bxe6 (25. Rd1 Nc4 $14) 25... fxe6 $14) 23... gxf5 {[%emt 0:00:15]} 24. Rfd1
$36 {[%emt 0:01:22] White is really pushing.} Ng6 {[%emt 0:02:55]} (24... Re8
$16 25. Be3 Rxc3 26. Bxb6 f4) 25. Be3 {[%emt 0:01:42] A strong pair of Bishops.
} ({Don't take} 25. Bd6 Rxd5 26. Rxd5 Rd8) 25... Rxc3 {[%emt 0:00:00]} 26. Rxf5
{[%emt 0:00:19]} ({Resist} 26. Bxb6 $6 Rc6 $18) 26... Rc6 {[%emt 0:07:00]} 27.
Rb5 {[%emt 0:01:30]} Ne5 {[%emt 0:01:01]} 28. Rxb6 {[%emt 0:00:29]} Rxb6 {
[%emt 0:00:20]} 29. Bxb6 {[%emt 0:00:02]} Bf6 {[%emt 0:00:00]} (29... Rc8 $142
30. Be3 Bf6) 30. f4 {[%emt 0:00:34]} Ng6 {[%emt 0:00:00]} 31. g3 {[%emt 0:00:
29]} Re8 {[%emt 0:00:14]} 32. Kf2 {[%emt 0:01:09]} Re7 $2 {[%emt 0:00:39] [#]}
(32... Nf8 33. Be3 Kg7) 33. Bd8 {[%emt 0:00:26] Weighted Error Value: White=0.
15 (very precise) /Black=0.37} 1-0

[Event "44th Chess Olympiad Open 2022"]
[Site "Chennai"]
[Date "2022.08.03"]
[Round "6.38"]
[White "Nsubuga, Haruna"]
[Black "Golubovskis, Maksims"]
[Result "0-1"]
[WhiteElo "2160"]
[BlackElo "2219"]
[Annotator "TA"]
[PlyCount "122"]
[EventDate "2022.??.??"]
[TimeControl "60"]

{[%evp 12,122,-3,-8,37,-33,0,-21,22,25,32,-49,-36,-88,-65,-106,-96,-102,-106,
-116,-134,-142,-129,-133,-129,-124,-110,-147,-33,-97,-82,-82,5,13,6,8,21,0,0,
-91,-92,-133,-134,-139,-147,-254,-234,-279,-244,-252,-238,-255,-227,-232,-172,
-432,-417,-409,-397,-553,-545,-545,-516,-583,-560,-621,-608,-612,-600,-584,
-555,-679,-545,-591,-574,-835,-661,-651,-617,-1100,-1003,-1396,-1413,-2812,
-2527,-2446,-2258,-2246,-2134,-5033,-2005,-1799,-1929,-1762,-1187,-1177,-941,
-1078,-1061,-479,-2525,-1990,-1762,-12840,-12840,-12845,-12846,-12846,-12837,
-12845,-12845,-12845,-12846]} 1. d4 {[%emt 0:00:01]} Nf6 {[%emt 0:00:09]} 2.
Nf3 {[%emt 0:00:03]} e6 {[%emt 0:00:24]} 3. g3 {[%emt 0:00:01]} b5 {[%emt 0:00:
00]} 4. Bg2 {[%emt 0:00:06]} Bb7 {[%emt 0:00:05]} 5. O-O {[%emt 0:00:12]} Be7 {
[%emt 0:00:42]} 6. a4 {[%emt 0:00:03]} b4 {[%emt 0:00:17]} 7. c4 {[%emt 0:00:
00]} c5 {[%emt 0:02:04] A46:1 d4 Nf6 2 Nf3 e6: Torre, London and Colle Systems.
} 8. dxc5 {[%emt 0:06:07]} (8. d5 $14) 8... Bxc5 {[%emt 0:00:29] [#]} 9. Bf4
$146 {[%emt 0:01:06]} ({Predecessor:} 9. Nbd2 a5 10. Nb3 Be7 11. Nbd4 O-O 12.
Bg5 Na6 13. Nb3 Qc7 14. Qd4 Rfc8 15. Rfd1 {½-½ (38) Georgiadis,A (1638)
-Sarafis,R (1541) Patras 2021}) 9... d5 {[%emt 0:15:41] The position is equal.}
10. cxd5 {[%emt 0:01:58]} Nxd5 {[%emt 0:03:58]} 11. Ng5 {[%emt 0:00:57]} (11.
Bg5 $14 f6 12. Bc1) 11... Be7 {[%emt 0:07:39]} 12. h4 {[%emt 0:02:22]} (12.
Bxd5 $15 exd5 13. Nf3) 12... h6 {[%emt 0:01:05]} 13. Nh3 {[%emt 0:01:07]} Nd7 {
[%emt 0:06:16]} 14. a5 {[%emt 0:01:08]} g5 {[%emt 0:00:49]} 15. a6 {[%emt 0:02:
37]} Bc6 {[%emt 0:00:49]} 16. hxg5 {[%emt 0:03:12]} hxg5 {[%emt 0:00:00]} 17.
Bc1 {[%emt 0:01:39]} Rc8 {[%emt 0:26:14]} 18. e4 {[%emt 0:01:39]} N5b6 {
[%emt 0:00:33]} 19. Be3 {[%emt 0:03:10]} Rg8 {[%emt 0:07:46]} ({Black should
play} 19... Bb5 $17 20. Nd2 Bxf1 21. Nxf1 f6) 20. b3 {[%emt 0:04:43]} ({
White should try} 20. Qe2 $15) 20... Bb5 {[%emt 0:06:43]} 21. Re1 {[%emt 0:00:
00]} Nc5 {[%emt 0:00:51]} (21... e5 $17 {And now ...g4 would win.} 22. f3 (22.
Ra5 Bc6 $17) 22... g4 23. fxg4 Bc5) 22. Qxd8+ $11 {[%emt 0:09:00]} Kxd8 {
[%emt 0:01:44]} 23. Ra5 {[%emt 0:00:44]} Bd7 {[%emt 0:00:30]} 24. Nd2 {[%emt 0:
00:00]} (24. Rc1 $5 {[%cal Re3c5]} g4 25. Nf4 $14 (25. Bxc5 gxh3 26. Bf1 Rg5
$14)) 24... e5 $36 {[%emt 0:00:20] Black has some pressure.} 25. f3 {[%emt 0:
01:11]} (25. Rc1 $11) 25... g4 $17 {[%emt 0:00:33] White is now going downhill.
} 26. Nf2 {[%emt 0:01:12]} gxf3 {[%emt 0:00:15] Black is more active.} 27. Nxf3
{[%emt 0:00:44]} f6 {[%emt 0:03:45]} ({Don't do} 27... Rxg3 28. Rc1 Ne6 29.
Rxc8+ Nxc8 30. Kh2 $14) 28. Rd1 {[%emt 0:05:26]} (28. Nd2 $17) 28... Ke8 $19 {
[%emt 0:02:01][%cal Yd8e8,Ye8d7,Yd7c6,Yc6b5]} ({Stronger than} 28... Rxg3 29.
Rc1 Nxb3 30. Bxb6+ axb6 31. Rxc8+ Kxc8 32. a7 $11) 29. Kh2 {[%emt 0:04:55]}
Rh8+ {[%emt 0:00:17]} 30. Nh4 {[%emt 0:01:50]} Nxb3 {[%emt 0:00:00]} 31. Bxb6 {
[%emt 0:00:07][%cal Ya5d5]} axb6 {[%emt 0:00:01]} 32. Ra2 {[%emt 0:01:39]} Na5
{[%emt 0:02:09]} 33. Rxd7 $2 {[%emt 0:00:50]} (33. Rad2 {is a better defense.}
Ba4 34. Bh3) 33... Kxd7 {[%emt 0:00:00]} 34. Bh3+ {[%emt 0:00:02]} Kc6 {
[%emt 0:00:10]} 35. Rc2+ {[%emt 0:00:48]} Bc5 {[%emt 0:00:00] Threatens to win
with ...b3. Black is clearly winning.} 36. Bxc8 {[%emt 0:00:00]} Rxc8 {[%emt 0:
00:10]} 37. Nd3 {[%emt 0:00:59]} Kb5 {[%emt 0:01:00][%cal Yc5g1] aiming for ...
Bg1+!} 38. Nf5 {[%emt 0:00:26]} Rh8+ {[%emt 0:02:21]} 39. Kg2 {[%emt 0:00:10]}
b3 {[%emt 0:01:01]} 40. Rc1 {[%emt 0:15:08]} Kxa6 {[%emt 0:00:48]} 41. Kf3 {
[%emt 0:32:07]} Rd8 {[%emt 0:33:15]} 42. Ke2 {[%emt 0:00:00]} Kb5 {[%emt 0:01:
29]} 43. Kd2 {[%emt 0:04:25]} Bb4+ {[%emt 0:02:56]} 44. Ke2 {[%emt 0:00:19]}
Rh8 {[%emt 0:01:25]} 45. Ne3 {[%emt 0:00:32]} Rh2+ {[%emt 0:00:51]} 46. Kf3 {
[%emt 0:00:02]} Bd2 {[%emt 0:00:41]} 47. Nf1 {[%emt 0:00:00]} Bxc1 {[%emt 0:00:
22]} 48. Nxh2 {[%emt 0:00:01] Endgame [#] KBN-KNN} Kc4 $1 {[%emt 0:00:00]} 49.
Ke2 {[%emt 0:00:00] [#]} (49. Nxc1 b2) 49... Kc3 $1 {[%emt 0:00:00]} 50. Ng4 {
[%emt 0:00:00] [#]} (50. Nf3 b2) 50... Bg5 {[%emt 0:00:00]} (50... Nc6 $142 $1
51. Ndf2 (51. Ngf2 Nd4+) 51... Nd4+ 52. Ke1 Kc2) 51. Ngf2 {[%emt 0:00:00]} Nc4
{[%emt 0:00:00]} 52. Nd1+ {[%emt 0:00:00]} Kd4 {[%emt 0:00:00]} 53. Ne1 {
[%emt 0:00:00]} Kxe4 {[%emt 0:00:00]} 54. Nf3 {[%emt 0:00:00]} b2 {[%emt 0:00:
00] ...b5 is the strong threat.} 55. Nc3+ {[%emt 0:00:00]} Kf5 {[%emt 0:00:00]}
56. Nb1 {[%emt 0:00:00]} b5 {[%emt 0:00:00]} 57. Ne1 {[%emt 0:00:00] [#]} Nd2
$1 {[%emt 0:00:00]} 58. Nd3 {[%emt 0:15:41]} (58. Kd3 Nxb1) 58... Nxb1 {
[%emt 0:00:00]} 59. Nxb2 {[%emt 0:00:00]} Kg4 {[%emt 0:00:00]} 60. Kf2 {
[%emt 0:00:18]} Nc3 {[%emt 0:00:00] ( -> ...e4)} 61. Nd3 {[%emt 0:00:29]} e4 {
[%emt 0:00:00] Weighted Error Value: White=0.54/Black=0.28 (precise)} 0-1